fUST/lending_fUST_20240320
["ID","MTS","AMOUNT","RATE_DAILY","PERIOD"]
[319713240,1710937857758,-500.0,0.00032941,2]
[319713241,1710937857767,-500.0,0.00032941,2]
[319713242,1710937857777,-500.0,0.00032941,2]
[319713243,1710937857787,-500.0,0.00032941,2]
[319713244,1710937857796,-500.0,0.00032941,2]
[319713245,1710937857806,-500.0,0.00032941,2]
[319713246,1710937857819,-500.0,0.00032941,2]
[319713247,1710937857828,-500.0,0.00032941,2]
[319713248,1710937857838,-608.96,0.00032941,2]
[319713249,1710937857848,-611.03,0.00032941,2]
[319713250,1710937857858,-500.0,0.00032941,2]
[319713251,1710937857868,-1541.93,0.00032941,2]
[319713252,1710937857878,-500.0,0.00032941,2]
[319713253,1710937857888,-702.93,0.00032941,2]
[319713254,1710937857897,-261.36262508,0.00032941,2]
[319713255,1710937857907,-151.0,0.00032941,2]
[319713256,1710937857916,-500.0,0.00032941,2]
[319713257,1710937857928,-1138.09,0.00032941,2]
[319713258,1710937857938,-601.27,0.00032941,2]
[319713259,1710937857949,-500.0,0.00032941,2]
[319713260,1710937857958,-596.87,0.00032941,2]
[319713261,1710937857968,-500.0,0.00032941,2]
[319713262,1710937857979,-500.0,0.00032941,2]
[319713263,1710937857989,-500.0,0.00032941,2]
[319713264,1710937857998,-500.0,0.00032941,2]
[319713265,1710937858008,-500.0,0.00032941,2]
[319713266,1710937858018,-625.83519365,0.00032941,2]
[319713267,1710937858028,-1109.19,0.00032941,2]
[319713268,1710937858038,-533.07,0.00032941,2]
[319713269,1710937858047,-500.0,0.00032941,2]
[319713270,1710937858057,-728.69,0.00032941,2]
[319713271,1710937858069,-500.0,0.00032941,2]
[319713272,1710937858078,-500.0,0.00032941,2]
[319713273,1710937858088,-1223.03,0.00032941,2]
[319713274,1710937858097,-500.0,0.00032941,2]
[319713275,1710937858106,-500.0,0.00032941,2]
[319713276,1710937858116,-1075.76,0.00032941,2]
[319713277,1710937858125,-500.0,0.00032941,2]
[319713278,1710937858134,-500.0,0.00032941,2]
[319713279,1710937858143,-680.42,0.00032941,2]
[319713280,1710937858153,-500.95517455,0.00032941,2]
[319713281,1710937858163,-500.0,0.00032941,2]
[319713282,1710937858172,-500.0,0.00032941,2]
[319713283,1710937858182,-500.0,0.00032941,2]
[319713284,1710937858191,-500.0,0.00032941,2]
[319713285,1710937858201,-500.0,0.00032941,2]
[319713286,1710937858216,-500.0,0.00032941,2]
[319713287,1710937858229,-500.0,0.00032943,2]
[319713288,1710937858239,-500.0,0.00032943,2]
[319713289,1710937858248,-500.0,0.00032943,2]
[319713290,1710937858258,-576.9,0.00032943,2]
[319713291,1710937858267,-4168.7,0.00032943,2]
[319713292,1710937858277,-500.0,0.00032943,2]
[319713293,1710937858286,-500.0,0.00032943,2]
[319713294,1710937858296,-500.0,0.00032943,2]
[319713295,1710937858305,-500.0,0.00032943,2]
[319713296,1710937858317,-500.0,0.00032943,2]
[319713297,1710937858326,-500.0,0.00032943,2]
[319713298,1710937858336,-500.0,0.00032943,2]
[319713299,1710937858345,-2965.11,0.00032943,2]
[319713300,1710937858355,-665.16,0.00032943,2]
[319713301,1710937858364,-779.2,0.00032943,2]
[319713302,1710937858441,-4166.66,0.00032943,2]
[319713303,1710937858451,-500.0,0.00032943,2]
[319713304,1710937858460,-500.0,0.00032948,2]
[319713305,1710937858470,-500.0,0.00032948,2]
[319713306,1710937858479,-500.0,0.00032948,2]
[319713307,1710937858489,-500.0,0.00032948,2]
[319713308,1710937858498,-2371.34,0.00032948,2]
[319713309,1710937858507,-500.0,0.00032948,2]
[319713310,1710937858517,-755.01,0.00032948,2]
[319713311,1710937858526,-500.0,0.00032948,2]
[319713312,1710937858536,-500.0,0.00032948,2]
[319713313,1710937858545,-500.0,0.00032948,2]
[319713314,1710937858555,-500.0,0.00032948,2]
[319713315,1710937858565,-231.46785522,0.00032948,2]
[319713316,1710937858574,-500.0,0.00032948,2]
[319713317,1710937858583,-500.0,0.00032948,2]
[319713318,1710937858593,-510.19,0.00032948,2]
[319713319,1710937858602,-500.0,0.00032948,2]
[319713320,1710937858614,-500.0,0.00032948,2]
[319713321,1710937858623,-500.0,0.00032948,2]
[319713322,1710937858633,-500.0,0.00032948,2]
[319713323,1710937858642,-500.0,0.00032948,2]
[319713324,1710937858652,-500.0,0.00032948,2]
[319713325,1710937858662,-494.92872544,0.00032948,2]
[319713326,1710937858671,-500.0,0.00032948,2]
[319713327,1710937858681,-500.0,0.00032948,2]
[319713328,1710937858690,-586.39,0.00032948,2]
[319713329,1710937858699,-500.0,0.00032948,2]
[319713330,1710937858709,-500.0,0.00032948,2]
[319713331,1710937858718,-500.0,0.00032948,2]
[319713332,1710937858728,-569.01,0.00032948,2]
[319713333,1710937858737,-500.0,0.00032948,2]
[319713334,1710937858747,-1366.38,0.00032948,2]
[319713335,1710937858756,-639.67,0.00032948,2]
[319713336,1710937858766,-500.0,0.00032948,2]
[319713337,1710937858776,-500.0,0.00032948,2]
[319713338,1710937858786,-500.0,0.00032948,2]
[319713339,1710937858795,-932.48,0.00032948,2]
[319713340,1710937858805,-770.91,0.00032948,2]
[319713341,1710937858816,-500.0,0.00032948,2]
[319713342,1710937858825,-500.0,0.00032948,2]
[319713343,1710937858835,-366.27680478,0.00032948,2]
[319713344,1710937858846,-500.0,0.00032948,2]
[319713345,1710937858856,-1000.17,0.00032948,2]
[319713346,1710937858865,-500.0,0.00032948,2]
[319713347,1710937858875,-646.17,0.00032948,2]
[319713348,1710937858884,-500.0,0.00032948,2]
[319713349,1710937858894,-500.0,0.00032948,2]
[319713350,1710937858904,-500.0,0.00032948,2]
[319713351,1710937858914,-806.28,0.00032948,2]
[319713352,1710937858924,-500.0,0.00032948,2]
[319713353,1710937858938,-500.0,0.00032948,2]
[319713354,1710937858948,-500.0,0.00032948,2]
[319713355,1710937858958,-553.88,0.00032948,2]
[319713356,1710937858968,-500.0,0.00032948,2]
[319713357,1710937858978,-12358.15441559,0.00033,11]
[319713358,1710937858988,-201.2320405,0.0003305,2]
[319713359,1710937858998,-500.0,0.00033101,2]
[319713360,1710937859007,-500.0,0.00033111,2]
[319713361,1710937859017,-558.06,0.00033112,2]
[319713362,1710937859027,-500.0,0.00033112,2]
[319713363,1710937859036,-3314.0,0.00033112,2]
[319713364,1710937859046,-3141.67,0.00033112,2]
[319713365,1710937859056,-984.85,0.00033112,2]
[319713366,1710937859067,-500.0,0.00033112,2]
[319713367,1710937859077,-39210.67,0.00033112,2]
[319713368,1710937859086,-2501.83,0.00033112,2]
[319713369,1710937859095,-3757.41,0.00033211,2]
[319713370,1710937859105,-500.0,0.00033211,2]
[319713371,1710937859115,-2245.36,0.00033211,2]
[319713372,1710937859125,-1980.19,0.00033211,2]
[319713373,1710937859134,-3202.49,0.00033211,2]
[319713374,1710937859144,-12350.32,0.00033211,2]
[319713375,1710937859153,-1724.39,0.00033211,2]
[319713376,1710937859162,-565.02,0.00033211,2]
[319713377,1710937859172,-500.0,0.00033211,2]
[319713378,1710937859181,-5209.66,0.00033211,2]
[319713379,1710937859191,-500.0,0.00033211,2]
[319713380,1710937859200,-2061.43,0.00033211,2]
[319713381,1710937859209,-500.0,0.00033211,2]
[319713382,1710937859219,-500.0,0.00033211,2]
[319713383,1710937859228,-500.0,0.00033211,2]
[319713384,1710937859237,-896.93,0.00033211,2]
[319713385,1710937859246,-500.0,0.00033211,2]
[319713386,1710937859256,-500.0,0.00033211,2]
[319713387,1710937859265,-34704.47,0.00033211,2]
[319713388,1710937859274,-6885.87,0.00033211,2]
[319713389,1710937859284,-500.0,0.00033211,2]
[319713390,1710937859294,-500.0,0.00033213,2]
[319713391,1710937859304,-506.96,0.00033213,2]
[319713392,1710937859314,-665.5,0.00033213,2]
[319713393,1710937859323,-557.59,0.00033213,2]
[319713394,1710937859332,-604.45,0.00033213,2]
[319713395,1710937859341,-826.7,0.00033213,2]
[319713396,1710937859351,-500.0,0.00033213,2]
[319713397,1710937859360,-979.6,0.00033213,2]
[319713398,1710937859369,-157.17717578,0.00033213,2]
[319713399,1710937859379,-351.23529663,0.00033213,2]
[319713400,1710937859388,-1437.52,0.00033213,2]
[319713401,1710937859397,-611.05,0.00033213,2]
[319713402,1710937859407,-500.0,0.00033213,2]
[319713403,1710937859416,-8325.38,0.00033213,2]
[319713404,1710937859426,-2778.2,0.00033213,2]
[319713405,1710937859436,-176.65024773,0.00033213,2]
[319713406,1710937859445,-1111.42,0.00033213,2]
[319713407,1710937859455,-500.0,0.00033213,2]
[319713408,1710937859465,-500.0,0.00033213,2]
[319713409,1710937859474,-1155.02,0.00033213,2]
[319713410,1710937859484,-500.0,0.00033213,2]
[319713411,1710937859493,-3076.45,0.00033213,2]
[319713412,1710937859502,-5048.6,0.00033213,2]
[319713413,1710937859512,-500.0,0.00033213,2]
[319713414,1710937859522,-1109.31,0.00033213,2]
[319713415,1710937859591,-500.0,0.00033213,2]
[319713416,1710937859607,-500.0,0.00033213,2]
[319713417,1710937859617,-599.74,0.00033213,2]
[319713418,1710937859627,-2843.79,0.00033213,2]
[319713419,1710937859637,-500.0,0.00033213,2]
[319713420,1710937859647,-3034.83,0.00033213,2]
[319713421,1710937859656,-500.0,0.00033213,2]
[319713422,1710937859666,-500.0,0.00033213,2]
[319713423,1710937859676,-1511.8,0.00033213,2]
[319713424,1710937859688,-1254.46,0.00033213,2]
[319713425,1710937859698,-500.0,0.00033213,2]
[319713426,1710937859708,-4334.6,0.00033213,2]
[319713427,1710937859718,-500.0,0.00033213,2]
[319713428,1710937859727,-799.65,0.00033213,2]
[319713429,1710937859737,-46894.07,0.00033214,2]
[319713430,1710937859746,-500.0,0.00033214,2]
[319713431,1710937859756,-150.34506008,0.00033215,2]
[319713432,1710937859765,-597.79484022,0.00033215,2]
[319713433,1710937859775,-500.0,0.00033215,2]
[319713434,1710937859784,-500.0,0.00033215,2]
[319713435,1710937859794,-501.83,0.00033215,2]
[319713436,1710937859804,-500.0,0.00033215,2]
[319713437,1710937859815,-500.0,0.00033215,2]
[319713438,1710937859825,-500.0,0.00033215,2]
[319713439,1710937859835,-500.0,0.00033215,2]
[319713440,1710937859845,-500.0,0.00033215,2]
[319713441,1710937859855,-500.0,0.00033215,2]
[319713442,1710937859864,-500.0,0.00033215,2]
[319713443,1710937859874,-500.0,0.00033215,2]
[319713444,1710937859884,-500.0,0.00033215,2]
[319713445,1710937859894,-500.0,0.00033215,2]
[319713446,1710937859903,-210.83739809,0.00033215,2]
[319713447,1710937859912,-601.74474858,0.00033215,2]
[319713448,1710937859922,-500.0,0.00033215,2]
[319713449,1710937859933,-500.0,0.00033215,2]
[319713450,1710937859943,-608.96,0.00033215,2]
[319713451,1710937859956,-611.03,0.00033215,2]
[319713452,1710937859966,-500.0,0.00033215,2]
[319713453,1710937859976,-1541.93,0.00033215,2]
[319713454,1710937859985,-500.0,0.00033215,2]
[319713455,1710937859996,-702.93,0.00033215,2]
[319713456,1710937860006,-151.0,0.00033215,2]
[319713457,1710937860016,-500.0,0.00033215,2]
[319713458,1710937860027,-1138.09,0.00033215,2]
[319713459,1710937860037,-601.27,0.00033215,2]
[319713460,1710937860047,-500.0,0.00033215,2]
[319713461,1710937860057,-596.87,0.00033215,2]
[319713462,1710937860068,-500.0,0.00033215,2]
[319713463,1710937860077,-500.0,0.00033215,2]
[319713464,1710937860086,-395.91513467,0.00033215,2]
[319713465,1710937860095,-500.0,0.00033215,2]
[319713466,1710937860104,-500.0,0.00033215,2]
[319713467,1710937860114,-1109.19,0.00033215,2]
[319713468,1710937860127,-533.07,0.00033215,2]
[319713469,1710937860147,-500.0,0.00033215,2]
[319713470,1710937860163,-728.69,0.00033215,2]
[319713471,1710937860181,-500.0,0.00033215,2]
[319713472,1710937860200,-500.0,0.00033215,2]
[319713473,1710937860218,-1223.03,0.00033215,2]
[319713474,1710937860234,-500.0,0.00033215,2]
[319713475,1710937860252,-515.05588877,0.00033215,2]
[319713476,1710937860272,-1075.76,0.00033215,2]
[319713477,1710937860288,-223.39956684,0.00033215,2]
[319713478,1710937860305,-500.0,0.00033215,2]
[319713479,1710937860326,-680.42,0.00033215,2]
[319713480,1710937860347,-500.0,0.00033215,2]
[319713481,1710937860360,-500.0,0.00033215,2]
[319713482,1710937860378,-500.0,0.00033215,2]
[319713483,1710937860394,-500.0,0.00033215,2]
[319713484,1710937860407,-500.0,0.00033215,2]
[319713485,1710937860422,-500.0,0.00033215,2]
[319713486,1710937860437,-500.0,0.00033217,2]
[319713487,1710937860452,-500.0,0.00033217,2]
[319713488,1710937860467,-443.86633735,0.00033217,2]
[319713489,1710937860485,-576.9,0.00033217,2]
[319713490,1710937860499,-4168.7,0.00033217,2]
[319713491,1710937860514,-500.0,0.00033217,2]
[319713492,1710937860528,-500.0,0.00033217,2]
[319713493,1710937860543,-500.0,0.00033217,2]
[319713494,1710937860558,-500.0,0.00033217,2]
[319713495,1710937860574,-500.0,0.00033217,2]
[319713496,1710937860589,-500.0,0.00033217,2]
[319713497,1710937860605,-500.0,0.00033217,2]
[319713498,1710937860619,-2965.11,0.00033217,2]
[319713499,1710937860634,-665.16,0.00033217,2]
[319713500,1710937860649,-779.2,0.00033217,2]
[319713501,1710937860663,-4166.66,0.00033217,2]
[319713502,1710937860677,-500.0,0.00033217,2]
[319713503,1710937860691,-177.21865364,0.00033222,2]
[319713504,1710937860706,-500.0,0.00033222,2]
[319713505,1710937860719,-500.0,0.00033222,2]
[319713506,1710937860728,-500.0,0.00033222,2]
[319713507,1710937860738,-2371.34,0.00033222,2]
[319713508,1710937860747,-500.0,0.00033222,2]
[319713509,1710937860757,-755.01,0.00033222,2]
[319713510,1710937860766,-500.0,0.00033222,2]
[319713511,1710937860776,-500.0,0.00033222,2]
[319713512,1710937860785,-574.95937404,0.00033222,2]
[319713513,1710937860794,-500.0,0.00033222,2]
[319713514,1710937860804,-500.0,0.00033222,2]
[319713515,1710937860815,-500.0,0.00033222,2]
[319713516,1710937860824,-510.19,0.00033222,2]
[319713517,1710937860833,-500.0,0.00033222,2]
[319713518,1710937860843,-500.0,0.00033222,2]
[319713519,1710937860852,-500.0,0.00033222,2]
[319713520,1710937861012,-500.0,0.00033222,2]
[319713521,1710937861031,-314.53775869,0.00033222,2]
[319713522,1710937861042,-521.49623472,0.00033222,2]
[319713523,1710937861051,-500.0,0.00033222,2]
[319713524,1710937861061,-500.0,0.00033222,2]
[319713525,1710937861070,-586.39,0.00033222,2]
[319713526,1710937861079,-500.0,0.00033222,2]
[319713527,1710937861088,-500.0,0.00033222,2]
[319713528,1710937861098,-500.0,0.00033222,2]
[319713529,1710937861108,-569.01,0.00033222,2]
[319713530,1710937861116,-500.0,0.00033222,2]
[319713531,1710937861126,-1366.38,0.00033222,2]
[319713532,1710937861135,-639.67,0.00033222,2]
[319713533,1710937861144,-500.0,0.00033222,2]
[319713534,1710937861153,-500.0,0.00033222,2]
[319713535,1710937861162,-500.0,0.00033222,2]
[319713536,1710937861171,-932.48,0.00033222,2]
[319713537,1710937861179,-770.91,0.00033222,2]
[319713538,1710937861189,-500.0,0.00033222,2]
[319713539,1710937861197,-500.0,0.00033222,2]
[319713540,1710937861208,-500.0,0.00033222,2]
[319713541,1710937861217,-1000.17,0.00033222,2]
[319713542,1710937861226,-500.0,0.00033222,2]
[319713543,1710937861234,-646.17,0.00033222,2]
[319713544,1710937861243,-164.96403892,0.00033222,2]
[319713545,1710937861253,-402.26290747,0.00033222,2]
[319713546,1710937861262,-500.0,0.00033222,2]
[319713547,1710937861271,-806.28,0.00033222,2]
[319713548,1710937861281,-500.0,0.00033222,2]
[319713549,1710937861290,-500.0,0.00033222,2]
[319713550,1710937861299,-500.0,0.00033222,2]
[319713551,1710937861311,-553.88,0.00033222,2]
[319713552,1710937861324,-500.0,0.00033222,2]
[319713553,1710937861333,-500.0,0.00033375,2]
[319713554,1710937861345,-500.0,0.00033385,2]
[319713555,1710937861354,-558.06,0.00033386,2]
[319713556,1710937861363,-500.0,0.00033386,2]
[319713557,1710937861373,-3314.0,0.00033386,2]
[319713558,1710937861382,-3141.67,0.00033386,2]
[319713559,1710937861392,-984.85,0.00033386,2]
[319713560,1710937861401,-500.0,0.00033386,2]
[319713561,1710937861411,-30930.94788425,0.00033386,2]
[319713562,1710937861646,-500.0,0.00031573,2]
[319713563,1710937861655,-395.8383812,0.00032117,2]
[319713564,1710937861848,-154.8915759,0.00028005,2]
[319713565,1710937861857,-599.84060618,0.00031467,2]
[319713566,1710937861868,-740.810376,0.00031468,2]
[319713567,1710937861878,-740.810376,0.00031468,2]
[319713568,1710937861887,-740.810376,0.00031468,2]
[319713569,1710937861899,-740.810376,0.00031468,2]
[319713570,1710937861909,-740.810376,0.00031468,2]
[319713571,1710937861920,-740.810376,0.00031468,2]
[319713572,1710937861931,-740.810376,0.00031468,2]
[319713573,1710937861942,-740.810376,0.00031468,2]
[319713574,1710937861954,-740.810376,0.00031468,2]
[319713575,1710937861964,-740.810376,0.00031468,2]
[319713576,1710937861974,-740.810375,0.00031468,2]
[319713577,1710937861986,-524.60857618,0.00031847,2]
[319713578,1710937861998,-104.1616188,0.00032117,2]
[319713579,1710937862008,-500.0,0.00032391,2]
[319713580,1710937862020,-500.0,0.00032665,2]
[319713581,1710937862031,-500.0,0.00032939,2]
[319713582,1710937862041,-500.0,0.00033213,2]
[319713583,1710937862051,-1267.58348794,0.00033386,2]
[319713584,1710937862133,-1021.7244298,0.00022557,2]
[319713585,1710937862166,-20.85151897,0.00022557,2]
[319713586,1710937921080,-154.8915759,0.00022557,2]
[319713587,1710937921106,-866.8328539,0.00022557,2]
[319713588,1710937921263,-175.74309487,0.00022557,2]
[319713589,1710937936965,-1021.7244298,0.00022557,2]
[319713590,1710937937049,-20.85151897,0.00022557,2]
[319713591,1710937955138,-1021.7244298,0.00022557,2]
[319713592,1710937955188,-20.85151897,0.00022557,2]
[319713593,1710937972920,-1021.7244298,0.00022557,2]
[319713594,1710937973112,-20.85151897,0.00022557,2]
[319713595,1710937993145,-1021.7244298,0.00022557,2]
[319713596,1710937993413,-20.85151897,0.00022557,2]
[319713597,1710938008970,-1021.7244298,0.00022557,2]
[319713598,1710938009077,-20.85151897,0.00022557,2]
[319713599,1710938029073,-1021.7244298,0.00022557,2]
[319713600,1710938029432,-20.85151897,0.00022557,2]
[319713601,1710938053132,-1021.7244298,0.00022557,2]
[319713602,1710938053343,-20.85151897,0.00022557,2]
[319713603,1710938074959,-527.53142348,0.00022557,2]
[319713604,1710938075088,-10.76594742,0.00022557,2]
[319713605,1710938188847,-5050.7027365,0.00022331,2]
[319713606,1710938189044,-103.07556605,0.00022331,2]
[319713608,1710938829133,-529.61361026,0.00025,2]
[319713609,1710938838865,-3245.13258247,0.00020457,2]
[319713610,1710938838932,-66.22719556,0.00020457,2]
[319713611,1710938846149,-423.61579133,0.00025,2]
[319713612,1710938846172,-3311.35977803,0.00025457,2]
[319713613,1710938846193,-1418.80273319,0.0002813,2]
[319713637,1710939032535,-212.80340529,0.00027849,2]
[319713638,1710939032546,-57.92730617,0.0002813,2]
[319713639,1710939032554,-154.87609912,0.00028926,2]
[319713640,1710939032563,-166.666666,0.00028927,2]
[319713641,1710939032573,-158.441836,0.00029326,2]
[319713642,1710939032582,-2330.6567934,0.0002933,2]
[319713643,1710939032591,-380.0,0.000294,2]
[319713644,1710939032600,-193.7125756,0.00029682,2]
[319713646,1710939032610,-641.25091115,0.0003,4]
[319713648,1710939032619,-4310.47877657,0.00030062,4]
[319713650,1710939032628,-2409.204796,0.00030063,2]
[319713654,1710939032637,-250.0,0.00030063,2]
[319713658,1710939032647,-500.0,0.00030136,2]
[319713661,1710939032656,-500.0,0.00030136,2]
[319713663,1710939032665,-166.666666,0.00030241,2]
[319713665,1710939032675,-174.73272,0.00030609,2]
[319713667,1710939032684,-174.73272,0.00030609,16]
[319713669,1710939032693,-174.73272,0.00030609,31]
[319713671,1710939032702,-174.73272,0.00030609,46]
[319713673,1710939032714,-174.73272,0.00030609,61]
[319713675,1710939032724,-174.73272,0.00030609,75]
[319713677,1710939032733,-174.73272,0.00030609,90]
[319713679,1710939032742,-174.73272,0.00030609,105]
[319713681,1710939032751,-174.73272,0.00030609,120]
[319713683,1710939032760,-190.0,0.00031,120]
[319713685,1710939032769,-402.464081,0.00031151,2]
[319713687,1710939032779,-180.11500984,0.00031259,2]
[319713689,1710939032787,-1000.0,0.00031263,2]
[319713691,1710939032797,-6306.08522753,0.00031359,3]
[319713693,1710939032806,-362.09279444,0.00031359,4]
[319713695,1710939032816,-286.42598368,0.00031359,2]
[319713697,1710939032825,-2209.33,0.00031359,2]
[319713699,1710939032835,-160.68166387,0.0003136,4]
[319713700,1710939032844,-500.0,0.0003136,2]
[319713702,1710939032854,-2094.44,0.0003136,2]
[319713703,1710939032864,-459.19062845,0.0003136,2]
[319713704,1710939032873,-1255.25,0.0003136,2]
[319713705,1710939032882,-2661.5,0.0003136,2]
[319713706,1710939032892,-500.0,0.00031361,2]
[319713707,1710939032901,-500.0,0.00031361,2]
[319713708,1710939032911,-536.44674645,0.00031361,2]
[319713709,1710939032921,-1590.47,0.00031361,2]
[319713710,1710939032930,-500.0,0.00031361,2]
[319713711,1710939032940,-500.0,0.00031361,2]
[319713712,1710939032949,-500.0,0.00031361,2]
[319713713,1710939032959,-500.0,0.00031361,2]
[319713714,1710939032970,-8748.14,0.00031361,2]
[319713715,1710939032979,-1221.45,0.00031361,2]
[319713716,1710939032989,-462.57986475,0.00031361,2]
[319713717,1710939032998,-500.0,0.00031361,2]
[319713718,1710939033008,-500.0,0.00031361,2]
[319713719,1710939033017,-500.0,0.00031361,2]
[319713720,1710939033026,-1460.18,0.00031361,2]
[319713721,1710939033036,-401.5795272,0.00031361,2]
[319713722,1710939033045,-500.0,0.00031361,2]
[319713723,1710939033055,-254.78094714,0.00031361,2]
[319713724,1710939033064,-11320.03548045,0.00031361,2]
[319713725,1710939033076,-342.86013823,0.00031361,2]
[319713756,1710939038571,-290.3505147,0.00031358,2]
[319713758,1710939038580,-419.95600529,0.00031358,2]
[319714430,1710939241880,18483.31342419,0.00015498,2]
[319714432,1710939254220,155.21366968,0.000195,2]
[319714452,1710940031094,-154.87609912,0.00024998,2]
[319714453,1710940031116,-210.03782905,0.00024999,2]
[319714454,1710940031135,-39.93122668,0.00024999,2]
[319714459,1710940042105,-764.49009768,0.00024998,2]
[319714460,1710940046257,1178.07995485,0.000189,2]
[319714461,1710940047012,-1154.51835575,0.000239,2]
[319714462,1710940047167,-23.5615991,0.000239,2]
[319714463,1710940060509,-663.31677501,0.00025,8]
[319714464,1710940060526,-33673.36644998,0.00025,8]
[319714465,1710940145132,-1609.06716003,0.00024996,2]
[319714466,1710940145153,-3436.23958139,0.00024997,2]
[319714467,1710940145358,-186.99808186,0.00024997,2]
[319714468,1710940145380,-3983.2446025,0.00024998,2]
[319714469,1710940145400,-191.20531276,0.00024998,2]
[319714470,1710940145424,-322.50861399,0.00024998,2]
[319714471,1710940145445,-602.76739922,0.00027487,2]
[319714472,1710940145467,-4747.73470018,0.00027488,2]
[319714473,1710940145487,-807.30445512,0.00027768,2]
[319714474,1710940145508,-166.666666,0.00028357,2]
[319714475,1710940145530,-824.365101,0.00028686,2]
[319714476,1710940145551,-3614.5111482,0.00028807,2]
[319714477,1710940145578,-1174.04594131,0.000289,2]
[319714478,1710940158087,-16085.23442384,0.00025,2]
[319714479,1710940161636,-4495.23735389,0.0002475,2]
[319714480,1710940161877,-91.73953783,0.0002475,2]
[319714482,1710940170232,-1535.35761665,0.00025,2]
[319714527,1710940233240,-379.40795951,0.00025,2]
[319714528,1710940233250,-4.03401354,0.000289,2]
[319714529,1710940233260,-166.666666,0.0002913,2]
[319714530,1710940233269,-234.75336,0.00029362,2]
[319714531,1710940233278,-167.347124,0.00029499,2]
[319714532,1710940233287,-337.87604249,0.00029686,2]
[319714533,1710940233297,-166.666666,0.00029903,2]
[319714534,1710940233306,-1045.20565191,0.00030623,4]
[319714535,1710940233315,-166.666666,0.00030677,2]
[319714536,1710940233324,-402.464081,0.00030924,2]
[319714537,1710940233333,-10000.0,0.00031,2]
[319714538,1710940233342,-1000.0,0.00031155,2]
[319714539,1710940233351,-484.27160338,0.00031248,4]
[319714540,1710940233360,-395.5743758,0.00031248,4]
[319714541,1710940233369,-1609.06716003,0.00031249,4]
[319714542,1710940233378,-361.27236154,0.00031249,4]
[319714543,1710940233387,-3277.98361502,0.00031249,4]
[319714544,1710940233396,-1250.27958201,0.00031249,2]
[319714545,1710940233408,-1250.27958201,0.00031249,2]
[319714546,1710940233417,-1250.27958201,0.00031249,2]
[319714547,1710940233427,-1250.27958201,0.00031249,2]
[319714548,1710940233436,-1250.27958201,0.00031249,2]
[319714549,1710940233444,-1250.27958201,0.00031249,2]
[319714550,1710940233455,-1250.27958201,0.00031249,2]
[319714551,1710940233464,-1250.27958201,0.00031249,2]
[319714552,1710940233473,-1250.27958201,0.00031249,2]
[319714553,1710940233483,-1250.27958201,0.00031249,2]
[319714554,1710940233495,-686.28984838,0.00031249,2]
[319714555,1710940233548,-280.47329147,0.00031249,2]
[319714591,1710940238785,-283.51644216,0.00031249,2]
[319714593,1710940238795,-39.73955384,0.00031249,2]
[319714595,1710940238807,-1210.54002817,0.00031249,2]
[319714597,1710940238816,-1250.27958201,0.00031249,2]
[319714599,1710940238825,-1250.27958201,0.00031249,2]
[319714601,1710940238834,-1065.1382589,0.00031249,2]
[319714603,1710940238845,-185.14132311,0.00031249,2]
[319714605,1710940238855,-814.85867689,0.00031249,2]
[319714607,1710940238866,-435.42090512,0.00031249,2]
[319714609,1710940238875,-1250.27958201,0.00031249,2]